fUSD/lending_fUSD_20241119
["ID","MTS","AMOUNT","RATE_DAILY","PERIOD"]
[342582908,1731982232753,-500.0,9.988e-05,2]
[342582909,1731982232764,-500.0,9.988e-05,2]
[342582910,1731982232775,-500.0,9.988e-05,2]
[342582911,1731982232786,-501.69490769,9.988e-05,2]
[342582912,1731982232797,-500.0,9.988e-05,2]
[342582913,1731982232809,-500.0,9.988e-05,2]
[342582914,1731982232822,-500.0,9.988e-05,2]
[342582915,1731982232833,-500.0,9.988e-05,2]
[342582916,1731982232844,-500.0,9.988e-05,2]
[342582917,1731982232855,-500.0,9.988e-05,2]
[342582918,1731982232865,-500.79530013,9.988e-05,2]
[342582919,1731982232876,-500.0,9.988e-05,2]
[342582920,1731982232894,-500.0,9.988e-05,2]
[342582921,1731982232904,-501.79026953,9.988e-05,2]
[342582922,1731982232914,-504.32421357,9.988e-05,2]
[342582923,1731982232924,-500.0,9.988e-05,2]
[342582924,1731982232935,-500.0,9.988e-05,2]
[342582925,1731982232945,-412.86545474,9.988e-05,2]
[342582926,1731982232957,-501.76286588,9.989e-05,2]
[342582927,1731982232968,-501.54785964,9.989e-05,2]
[342582928,1731982232980,-500.98810067,9.989e-05,2]
[342582929,1731982232993,-501.3146889,9.989e-05,2]
[342582930,1731982233004,-500.84733883,9.989e-05,2]
[342582931,1731982233015,-2069.1052046,9.989e-05,2]
[342582932,1731982233026,-3038.5948008,9.989e-05,2]
[342582933,1731982233038,-1833.4817793,9.993e-05,2]
[342582934,1731982233049,-1597.858354,9.993e-05,2]
[342582935,1731982233061,-2696.1908701,9.993e-05,2]
[342582936,1731982233073,-2353.7869394,9.993e-05,2]
[342582937,1731982233085,-1618.774,9.996e-05,2]
[342582938,1731982233096,-500.0,9.998e-05,2]
[342582939,1731982233107,-500.0,9.998e-05,2]
[342582940,1731982233119,-500.0,9.998e-05,2]
[342582941,1731982233131,-500.0,9.998e-05,2]
[342582942,1731982233143,-500.0,9.998e-05,2]
[342582943,1731982233156,-500.0,9.998e-05,2]
[342582944,1731982233166,-500.0,9.998e-05,2]
[342582945,1731982233178,-500.0,9.998e-05,2]
[342582946,1731982233189,-500.0,9.998e-05,2]
[342582947,1731982233201,-500.0,9.998e-05,2]
[342582948,1731982233214,-500.0,9.998e-05,2]
[342582949,1731982233225,-500.0,9.998e-05,2]
[342582950,1731982233236,-500.0,9.998e-05,2]
[342582951,1731982233248,-500.0,9.998e-05,2]
[342582952,1731982233258,-500.0,9.998e-05,2]
[342582953,1731982233269,-500.0,9.998e-05,2]
[342582954,1731982233280,-500.0,9.998e-05,2]
[342582955,1731982233290,-575.79,9.998e-05,2]
[342582956,1731982233301,-500.0,9.998e-05,2]
[342582957,1731982233313,-500.0,9.998e-05,2]
[342582958,1731982233323,-500.0,9.998e-05,2]
[342582959,1731982233334,-500.0,9.998e-05,2]
[342582960,1731982233345,-500.0,9.998e-05,2]
[342582961,1731982233356,-500.0,9.998e-05,2]
[342582962,1731982233372,-500.0,9.998e-05,2]
[342582963,1731982233383,-500.0,9.998e-05,2]
[342582964,1731982233397,-500.0,9.998e-05,2]
[342582965,1731982233408,-550.65616944,9.998e-05,2]
[342582966,1731982233419,-500.0,9.998e-05,2]
[342582967,1731982233430,-500.0,9.998e-05,2]
[342582968,1731982233440,-398.25706625,9.998e-05,2]
[342582969,1731982233451,-500.0,9.998e-05,2]
[342582970,1731982233462,-808.61,9.998e-05,2]
[342582971,1731982233472,-500.0,9.998e-05,2]
[342582972,1731982233482,-808.61,9.998e-05,2]
[342582973,1731982233492,-500.0,9.998e-05,2]
[342582974,1731982233501,-625.34021733,9.998e-05,2]
[342582975,1731982233513,-558.69609822,9.998e-05,2]
[342582976,1731982233524,-500.0,9.998e-05,2]
[342582977,1731982233535,-500.0,9.998e-05,2]
[342582978,1731982233546,-500.0,9.998e-05,2]
[342582979,1731982233558,-633.73,9.998e-05,2]
[342582980,1731982233570,-500.0,9.998e-05,2]
[342582981,1731982233581,-500.0,9.998e-05,2]
[342582982,1731982233591,-193.2976993,9.998e-05,2]
[342582983,1731982233600,-500.0,9.998e-05,2]
[342582984,1731982233610,-500.0,9.998e-05,2]
[342582985,1731982233621,-500.0,9.998e-05,2]
[342582986,1731982233631,-337.90971429,9.998e-05,2]
[342582987,1731982233641,-500.0,9.998e-05,2]
[342582988,1731982233654,-500.0,9.998e-05,2]
[342582989,1731982233665,-577.88750881,9.998e-05,2]
[342582990,1731982233676,-500.0,9.998e-05,2]
[342582991,1731982233687,-500.0,9.998e-05,2]
[342582992,1731982233699,-500.0,9.998e-05,2]
[342582993,1731982233710,-500.0,9.998e-05,2]
[342582994,1731982233722,-500.0,9.998e-05,2]
[342582995,1731982233734,-532.7463475,9.998e-05,2]
[342582996,1731982233746,-500.0,9.998e-05,2]
[342582997,1731982233757,-243.46352386,9.998e-05,2]
[342582998,1731982233768,-500.0,9.998e-05,2]
[342582999,1731982233778,-500.0,9.998e-05,2]
[342583000,1731982233788,-500.0,9.998e-05,2]
[342583001,1731982233799,-500.0,9.998e-05,2]
[342583002,1731982233811,-500.0,9.998e-05,2]
[342583003,1731982233824,-500.0,9.998e-05,2]
[342583004,1731982233834,-500.0,9.998e-05,2]
[342583005,1731982233844,-500.0,9.998e-05,2]
[342583006,1731982233855,-500.0,9.998e-05,2]
[342583007,1731982233865,-500.0,9.998e-05,2]
[342583008,1731982233875,-178.08123795,9.998e-05,2]
[342583009,1731982233885,-500.0,9.998e-05,2]
[342583010,1731982233899,-500.0,9.998e-05,2]
[342583011,1731982233909,-500.0,9.998e-05,2]
[342583012,1731982233920,-509.47312597,9.998e-05,2]
[342583013,1731982233930,-500.0,9.998e-05,2]
[342583014,1731982233941,-500.0,9.998e-05,2]
[342583015,1731982233952,-245.36855587,9.998e-05,2]
[342583016,1731982233962,-500.0,9.998e-05,2]
[342583017,1731982233974,-500.0,9.998e-05,2]
[342583018,1731982233984,-500.0,9.998e-05,2]
[342583019,1731982233995,-500.0,9.998e-05,2]
[342583020,1731982234008,-500.0,9.999e-05,2]
[342583021,1731982234019,-500.0,9.999e-05,2]
[342583022,1731982234029,-500.0,9.999e-05,2]
[342583023,1731982234040,-263.54,9.999e-05,2]
[342583024,1731982234050,-500.0,9.999e-05,2]
[342583025,1731982234061,-500.0,9.999e-05,2]
[342583026,1731982234072,-500.87481958,9.999e-05,2]
[342583027,1731982234082,-500.0,9.999e-05,2]
[342583028,1731982234093,-504.36614503,9.999e-05,2]
[342583029,1731982234104,-295.00192908,9.999e-05,2]
[342583030,1731982234115,-500.0,9.999e-05,2]
[342583031,1731982234126,-530.41697697,9.999e-05,2]
[342583032,1731982234137,-500.0,9.999e-05,2]
[342583033,1731982234149,-501.00478706,9.999e-05,2]
[342583034,1731982234160,-500.0,9.999e-05,2]
[342583035,1731982234171,-500.0,9.999e-05,2]
[342583036,1731982234182,-500.0,9.999e-05,2]
[342583037,1731982234194,-500.0,9.999e-05,2]
[342583038,1731982234205,-500.0,9.999e-05,2]
[342583039,1731982234217,-500.0,9.999e-05,2]
[342583040,1731982234231,-500.0,9.999e-05,2]
[342583041,1731982234242,-500.0,9.999e-05,2]
[342583042,1731982234252,-500.0,9.999e-05,2]
[342583043,1731982234262,-205.78008783,9.999e-05,2]
[342583044,1731982234273,-500.0,9.999e-05,2]
[342583045,1731982234284,-500.0,9.999e-05,2]
[342583046,1731982234294,-370.91557858,9.999e-05,2]
[342583047,1731982234305,-500.0,9.999e-05,2]
[342583048,1731982234315,-150.0,9.999e-05,2]
[342583049,1731982234326,-496.47212036,9.999e-05,2]
[342583050,1731982234336,-150.49034405,9.999e-05,2]
[342583051,1731982234346,-501.90860121,9.999e-05,2]
[342583052,1731982234357,-501.31041952,9.999e-05,2]
[342583053,1731982234367,-500.0,9.999e-05,2]
[342583054,1731982234377,-501.93086835,9.999e-05,2]
[342583055,1731982234388,-502.45819435,9.999e-05,2]
[342583056,1731982234400,-575.0,9.999e-05,2]
[342583057,1731982234410,-500.0,9.999e-05,2]
[342583058,1731982234421,-500.0,9.999e-05,2]
[342583059,1731982234431,-500.0,9.999e-05,2]
[342583060,1731982234442,-500.0,9.999e-05,2]
[342583061,1731982234452,-500.0,9.999e-05,2]
[342583062,1731982234462,-166.78,9.999e-05,2]
[342583063,1731982234473,-500.0,9.999e-05,2]
[342583064,1731982234484,-500.0,9.999e-05,2]
[342583065,1731982234494,-500.0,9.999e-05,2]
[342583066,1731982234505,-500.0,9.999e-05,2]
[342583067,1731982234515,-500.0,9.999e-05,2]
[342583068,1731982234526,-500.0,9.999e-05,2]
[342583069,1731982234537,-500.0,9.999e-05,2]
[342583070,1731982234547,-500.0,9.999e-05,2]
[342583071,1731982234558,-500.0,9.999e-05,2]
[342583072,1731982234568,-500.0,9.999e-05,2]
[342583073,1731982234580,-500.0,9.999e-05,2]
[342583074,1731982234591,-500.0,9.999e-05,2]
[342583075,1731982234603,-338.17451423,9.999e-05,2]
[342583076,1731982234614,-361.69989054,9.999e-05,2]
[342583077,1731982234626,-500.0,9.999e-05,2]
[342583078,1731982234637,-523.84678155,9.999e-05,2]
[342583079,1731982234651,-500.0,9.999e-05,2]
[342583080,1731982234662,-564.14256589,9.999e-05,2]
[342583081,1731982234673,-500.0,9.999e-05,2]
[342583082,1731982234683,-196.32581155,9.999e-05,2]
[342583083,1731982234694,-500.0,9.999e-05,2]
[342583084,1731982234704,-355.03790833,9.999e-05,2]
[342583085,1731982234714,-500.0,9.999e-05,2]
[342583086,1731982234724,-502.18223472,9.999e-05,2]
[342583087,1731982234734,-500.0,9.999e-05,2]
[342583088,1731982234745,-381.05956747,9.999e-05,2]
[342583089,1731982234757,-501.36745434,9.999e-05,2]
[342583090,1731982234767,-500.0,9.999e-05,2]
[342583091,1731982234776,-502.32685182,9.999e-05,2]
[342583092,1731982234787,-500.0,9.999e-05,2]
[342583093,1731982234797,-503.4163328,9.999e-05,2]
[342583094,1731982234808,-500.0,9.999e-05,2]
[342583095,1731982234821,-500.0,9.999e-05,2]
[342583096,1731982234832,-500.0,9.999e-05,2]
[342583097,1731982234842,-500.0,9.999e-05,2]
[342583098,1731982234852,-503.71585725,9.999e-05,2]
[342583099,1731982234863,-500.0,9.999e-05,2]
[342583100,1731982234873,-434.96481595,9.999e-05,2]
[342583101,1731982234884,-501.75536684,9.999e-05,2]
[342583102,1731982234897,-500.0,9.999e-05,2]
[342583103,1731982234908,-569.13186273,9.999e-05,2]
[342583104,1731982234919,-500.0,9.999e-05,2]
[342583105,1731982234929,-501.5134593,9.999e-05,2]
[342583106,1731982234939,-293.65319994,9.999e-05,2]
[342583107,1731982234950,-500.0,9.999e-05,2]
[342583108,1731982234960,-558.98559978,9.999e-05,2]
[342583109,1731982234970,-500.0,9.999e-05,2]
[342583110,1731982234980,-623.36,9.999e-05,2]
[342583111,1731982234990,-500.0,9.999e-05,2]
[342583112,1731982235000,-500.0,9.999e-05,2]
[342583113,1731982235010,-500.0,9.999e-05,2]
[342583114,1731982235020,-500.0,9.999e-05,2]
[342583115,1731982235031,-500.0,9.999e-05,2]
[342583116,1731982235041,-500.0,9.999e-05,2]
[342583117,1731982235051,-500.0,9.999e-05,2]
[342583118,1731982235060,-293.39953127,9.999e-05,2]
[342583119,1731982235070,-644.03054556,9.999e-05,2]
[342583120,1731982235079,-500.0,9.999e-05,2]
[342583121,1731982235089,-500.0,9.999e-05,2]
[342583122,1731982235098,-500.0,9.999e-05,2]
[342583123,1731982235108,-504.12398842,9.999e-05,2]
[342583124,1731982235118,-500.0,9.999e-05,2]
[342583125,1731982235128,-500.0,9.999e-05,2]
[342583126,1731982235137,-500.0,9.999e-05,2]
[342583127,1731982235149,-500.0,9.999e-05,2]
[342583128,1731982235159,-500.0,9.999e-05,2]
[342583129,1731982235169,-500.0,9.999e-05,2]
[342583130,1731982235179,-500.0,9.999e-05,2]
[342583131,1731982235189,-500.0,9.999e-05,2]
[342583132,1731982235198,-500.0,9.999e-05,2]
[342583133,1731982235208,-500.0,9.999e-05,2]
[342583134,1731982235218,-500.0,9.999e-05,2]
[342583135,1731982235228,-449.45978633,9.999e-05,2]
[342583136,1731982235238,-502.41253649,9.999e-05,2]
[342583137,1731982235248,-500.0,9.999e-05,2]
[342583138,1731982235258,-500.0,9.999e-05,2]
[342583139,1731982235268,-500.0,9.999e-05,2]
[342583140,1731982235278,-500.0,9.999e-05,2]
[342583141,1731982235288,-500.0,9.999e-05,2]
[342583142,1731982235298,-500.0,9.999e-05,2]
[342583143,1731982235308,-500.0,9.999e-05,2]
[342583144,1731982235319,-500.0,9.999e-05,2]
[342583145,1731982235328,-500.0,9.999e-05,2]
[342583146,1731982235339,-500.0,9.999e-05,2]
[342583147,1731982235349,-500.0,9.999e-05,2]
[342583148,1731982235359,-500.0,9.999e-05,2]
[342583149,1731982235370,-500.0,9.999e-05,2]
[342583150,1731982235379,-500.0,9.999e-05,2]
[342583151,1731982235389,-500.0,9.999e-05,2]
[342583152,1731982235401,-500.68458444,9.999e-05,2]
[342583153,1731982235412,-500.0,9.999e-05,2]
[342583154,1731982235422,-500.0,9.999e-05,2]
[342583155,1731982235432,-505.46690632,9.999e-05,2]
[342583156,1731982235442,-500.0,9.999e-05,2]
[342583157,1731982235452,-523.84902563,9.999e-05,2]
[342583158,1731982235462,-500.0,9.999e-05,2]
[342583159,1731982235472,-500.0,9.999e-05,2]
[342583160,1731982235482,-500.0,9.999e-05,2]
[342583161,1731982235493,-500.0,9.999e-05,2]
[342583162,1731982235504,-500.0,9.999e-05,2]
[342583163,1731982235515,-500.0,9.999e-05,2]
[342583164,1731982235525,-500.0,9.999e-05,2]
[342583165,1731982235538,-500.0,9.999e-05,2]
[342583166,1731982235548,-500.0,9.999e-05,2]
[342583167,1731982235559,-500.0,9.999e-05,2]
[342583168,1731982235569,-500.0,9.999e-05,2]
[342583169,1731982235579,-500.0,9.999e-05,2]
[342583170,1731982235589,-500.0,9.999e-05,2]
[342583171,1731982235601,-500.0,9.999e-05,2]
[342583172,1731982235612,-500.0,9.999e-05,2]
[342583173,1731982235623,-520.1689996,9.999e-05,2]
[342583174,1731982235634,-500.0,9.999e-05,2]
[342583175,1731982235645,-500.0,9.999e-05,2]
[342583176,1731982235656,-538.93451019,9.999e-05,2]
[342583177,1731982235667,-500.0,9.999e-05,2]
[342583178,1731982235677,-307.92726648,9.999e-05,2]
[342583179,1731982235688,-500.0,9.999e-05,2]
[342583180,1731982235699,-500.0,9.999e-05,2]
[342583181,1731982235710,-500.0,9.999e-05,2]
[342583182,1731982235720,-508.72020707,9.999e-05,2]
[342583183,1731982235731,-500.0,9.999e-05,2]
[342583184,1731982235742,-619.53519623,9.999e-05,2]
[342583185,1731982235755,-503.42687076,9.999e-05,2]
[342583186,1731982235766,-527.39482313,9.999e-05,2]
[342583187,1731982235776,-500.0,9.999e-05,2]
[342583188,1731982235786,-500.0,9.999e-05,2]
[342583189,1731982235796,-503.92373496,9.999e-05,2]
[342583190,1731982235806,-500.0,9.999e-05,2]
[342583191,1731982235819,-500.0,9.999e-05,2]
[342583192,1731982235829,-501.32409553,9.999e-05,2]
[342583193,1731982235840,-366.29004295,9.999e-05,2]
[342583194,1731982235850,-500.0,9.999e-05,2]
[342583195,1731982235861,-500.0,9.999e-05,2]
[342583196,1731982235871,-506.07225384,9.999e-05,2]
[342583197,1731982235881,-500.0,9.999e-05,2]
[342583198,1731982235891,-500.0,9.999e-05,2]
[342583199,1731982235903,-500.0,9.999e-05,2]
[342583200,1731982235913,-500.0,9.999e-05,2]
[342583201,1731982235922,-500.0,9.999e-05,2]
[342583202,1731982235932,-500.0,9.999e-05,2]
[342583203,1731982235943,-500.0,9.999e-05,2]
[342583204,1731982235953,-501.42939051,9.999e-05,2]
[342583205,1731982235963,-500.0,9.999e-05,2]
[342583206,1731982235974,-522.63073395,9.999e-05,2]
[342583207,1731982235984,-244.61155793,9.999e-05,2]
[342583208,1731982235997,-500.78312812,9.999e-05,2]
[342583209,1731982236007,-500.0,9.999e-05,2]
[342583210,1731982236017,-482.31524672,9.999e-05,2]
[342583211,1731982236027,-500.0,9.999e-05,2]
[342583212,1731982236037,-376.59,9.999e-05,2]
[342583213,1731982236047,-514.00736663,9.999e-05,2]
[342583214,1731982236057,-501.20031694,9.999e-05,2]
[342583215,1731982236067,-504.20916022,9.999e-05,2]
[342583216,1731982236077,-500.0,9.999e-05,2]
[342583217,1731982236087,-513.2844278,9.999e-05,2]
[342583218,1731982236098,-500.0,9.999e-05,2]
[342583219,1731982236108,-500.0,9.999e-05,2]
[342583220,1731982236118,-500.0,9.999e-05,2]
[342583221,1731982236127,-500.0,9.999e-05,2]
[342583222,1731982236138,-511.13944801,9.999e-05,2]
[342583223,1731982236148,-500.0,9.999e-05,2]
[342583224,1731982236158,-482.36355635,9.999e-05,2]
[342583225,1731982236168,-502.14535879,9.999e-05,2]
[342583226,1731982236178,-500.0,9.999e-05,2]
[342583227,1731982236189,-455.72914172,9.999e-05,2]
[342583228,1731982236199,-500.0,9.999e-05,2]
[342583229,1731982236210,-156.77,9.999e-05,2]
[342583230,1731982236220,-500.0,9.999e-05,2]
[342583231,1731982236231,-500.72692181,9.999e-05,2]
[342583232,1731982236242,-502.30442066,9.999e-05,2]
[342583233,1731982236252,-544.46297063,9.999e-05,2]
[342583234,1731982236262,-500.0,9.999e-05,2]
[342583235,1731982236272,-500.0,9.999e-05,2]
[342583236,1731982236727,-500.0,9.999e-05,2]
[342583237,1731982236738,-390.43009658,9.999e-05,2]
[342583238,1731982236748,-500.0,9.999e-05,2]
[342583239,1731982236758,-509.36832815,9.999e-05,2]
[342583240,1731982236768,-587.06,9.999e-05,2]
[342583241,1731982236779,-511.19440125,9.999e-05,2]
[342583242,1731982236789,-500.0,9.999e-05,2]
[342583243,1731982236798,-500.0,9.999e-05,2]
[342583244,1731982236808,-500.0,9.999e-05,2]
[342583245,1731982236821,-500.0,9.999e-05,2]
[342583246,1731982236831,-512.56751232,9.999e-05,2]
[342583247,1731982236840,-242.70025434,9.999e-05,2]
[342583248,1731982236850,-500.0,9.999e-05,2]
[342583249,1731982236861,-164.1690839,9.999e-05,2]
[342583250,1731982236870,-513.49460335,9.999e-05,2]
[342583251,1731982236880,-508.66295843,9.999e-05,2]
[342583252,1731982236891,-500.0,9.999e-05,2]
[342583253,1731982236902,-500.0,9.999e-05,2]
[342583254,1731982236912,-500.0,9.999e-05,2]
[342583255,1731982236921,-500.0,9.999e-05,2]
[342583256,1731982236932,-500.0,9.999e-05,2]
[342583257,1731982236941,-501.37856547,9.999e-05,2]
[342583258,1731982236950,-500.0,9.999e-05,2]
[342583259,1731982236959,-518.06847134,9.999e-05,2]
[342583260,1731982236968,-551.27727364,9.999e-05,2]
[342583261,1731982236977,-500.0,9.999e-05,2]
[342583262,1731982236987,-500.0,9.999e-05,2]
[342583263,1731982236996,-503.29477499,9.999e-05,2]
[342583264,1731982237006,-500.0,9.999e-05,2]
[342583265,1731982237016,-409.64578556,9.999e-05,2]
[342583266,1731982237025,-501.36255359,9.999e-05,2]
[342583267,1731982237035,-500.0,9.999e-05,2]
[342583268,1731982237045,-503.14623284,9.999e-05,2]
[342583269,1731982237054,-500.0,9.999e-05,2]
[342583270,1731982237064,-497.7680557,9.999e-05,2]
[342583271,1731982237073,-500.0,9.999e-05,2]
[342583272,1731982237082,-500.0,9.999e-05,2]
[342583273,1731982237092,-501.94204349,9.999e-05,2]
[342583274,1731982237102,-388.77901454,9.999e-05,2]
[342583275,1731982237112,-502.76615899,9.999e-05,2]
[342583276,1731982237122,-501.09518605,9.999e-05,2]
[342583277,1731982237132,-150.0,9.999e-05,2]
[342583278,1731982237142,-230.02900983,9.999e-05,2]
[342583279,1731982237152,-501.74869745,9.999e-05,2]
[342583280,1731982237163,-500.0,9.999e-05,2]
[342583281,1731982237172,-502.10680629,9.999e-05,2]
[342583282,1731982237181,-500.0,9.999e-05,2]
[342583283,1731982237190,-505.13663998,9.999e-05,2]
[342583284,1731982237200,-500.0,9.999e-05,2]
[342583285,1731982237210,-500.0,9.999e-05,2]
[342583286,1731982237219,-500.0,9.999e-05,2]
[342583287,1731982237228,-500.0,9.999e-05,2]
[342583288,1731982237237,-500.0,9.999e-05,2]
[342583289,1731982237247,-514.99450069,9.999e-05,2]
[342583290,1731982237256,-522.02243473,9.999e-05,2]
[342583291,1731982237266,-500.0,9.999e-05,2]
[342583292,1731982237275,-507.47818931,9.999e-05,2]
[342583293,1731982237284,-509.16311519,9.999e-05,2]
[342583294,1731982237293,-500.0,9.999e-05,2]
[342583295,1731982237303,-500.0,9.999e-05,2]
[342583296,1731982237312,-500.0,9.999e-05,2]
[342583297,1731982237322,-500.0,9.999e-05,2]
[342583298,1731982237331,-260.57528848,9.999e-05,2]
[342583299,1731982237340,-500.0,9.999e-05,2]
[342583300,1731982237349,-500.0,9.999e-05,2]
[342583301,1731982237358,-500.0,9.999e-05,2]
[342583302,1731982237368,-504.21669022,9.999e-05,2]
[342583303,1731982237378,-500.0,9.999e-05,2]
[342583304,1731982237387,-504.88088002,9.999e-05,2]
[342583305,1731982237400,-500.0,9.999e-05,2]
[342583306,1731982237409,-519.30397921,9.999e-05,2]
[342583307,1731982237419,-500.9719863,9.999e-05,2]
[342583308,1731982237428,-500.0,9.999e-05,2]
[342583309,1731982237437,-500.0,9.999e-05,2]
[342583310,1731982237446,-501.19076441,9.999e-05,2]
[342583311,1731982237456,-500.0,9.999e-05,2]
[342583312,1731982237465,-500.0,9.999e-05,2]
[342583313,1731982237475,-500.0,9.999e-05,2]
[342583314,1731982237484,-501.17017576,9.999e-05,2]
[342583315,1731982237494,-392.32271172,9.999e-05,2]
[342583317,1731982237503,-500.0,9.999e-05,2]
[342583319,1731982237513,-500.0,9.999e-05,2]
[342583320,1731982237523,-501.75470749,9.999e-05,2]
[342583321,1731982237532,-500.0,9.999e-05,2]
[342583322,1731982237542,-500.0,9.999e-05,2]
[342583323,1731982237551,-501.50205755,9.999e-05,2]
[342583324,1731982237560,-500.0,9.999e-05,2]
[342583325,1731982237570,-500.0,9.999e-05,2]
[342583326,1731982237579,-500.0,9.999e-05,2]
[342583327,1731982237589,-501.75346881,9.999e-05,2]
[342583328,1731982237599,-500.0,9.999e-05,2]
[342583329,1731982237609,-500.0,9.999e-05,2]
[342583330,1731982237619,-500.0,9.999e-05,2]
[342583331,1731982237628,-500.0,9.999e-05,2]
[342583332,1731982237637,-500.0,9.999e-05,2]
[342583333,1731982237647,-507.97071192,9.999e-05,2]
[342583334,1731982237658,-500.0,9.999e-05,2]
[342583335,1731982237667,-513.35095322,9.999e-05,2]
[342583336,1731982237676,-500.0,9.999e-05,2]
[342583337,1731982237685,-500.0,9.999e-05,2]
[342583338,1731982237695,-500.0,9.999e-05,2]
[342583339,1731982237704,-504.65847991,9.999e-05,2]
[342583340,1731982237713,-191.81,9.999e-05,2]
[342583341,1731982237724,-504.28579963,9.999e-05,2]
[342583342,1731982237734,-500.0,9.999e-05,2]
[342583343,1731982237744,-500.0,9.999e-05,2]
[342583344,1731982237753,-500.0,9.999e-05,2]
[342583345,1731982237764,-500.0,9.999e-05,2]
[342583346,1731982237773,-507.93874061,9.999e-05,2]
[342583347,1731982237782,-507.12162404,9.999e-05,2]
[342583348,1731982237791,-500.0,9.999e-05,2]
[342583349,1731982237800,-503.81794794,9.999e-05,2]
[342583350,1731982237810,-500.0,9.999e-05,2]
[342583351,1731982237822,-491.53292448,9.999e-05,2]
[342583352,1731982237831,-500.0,9.999e-05,2]
[342583353,1731982237841,-500.0,9.999e-05,2]
[342583354,1731982237850,-509.58133101,9.999e-05,2]
[342583355,1731982237859,-509.18063932,9.999e-05,2]
[342583356,1731982237869,-500.0,9.999e-05,2]
[342583357,1731982237877,-500.0,9.999e-05,2]
[342583358,1731982237887,-506.34318352,9.999e-05,2]
[342583359,1731982237897,-516.04044723,9.999e-05,2]
[342583360,1731982237908,-500.0,9.999e-05,2]
[342583361,1731982237917,-504.91856608,9.999e-05,2]
[342583362,1731982237926,-500.0,9.999e-05,2]
[342583363,1731982237935,-504.247605,9.999e-05,2]
[342583364,1731982237945,-507.57830434,9.999e-05,2]
[342583365,1731982237954,-500.0,9.999e-05,2]
[342583366,1731982237963,-500.0,9.999e-05,2]
[342583367,1731982237972,-508.28779298,9.999e-05,2]
[342583368,1731982237981,-500.0,9.999e-05,2]
[342583369,1731982237990,-515.69012854,9.999e-05,2]
[342583370,1731982237999,-506.29243417,9.999e-05,2]
[342583371,1731982238008,-500.0,9.999e-05,2]
[342583372,1731982238017,-500.98000748,9.999e-05,2]
[342583373,1731982238027,-500.0,9.999e-05,2]
[342583374,1731982238036,-500.0,9.999e-05,2]
[342583375,1731982238045,-500.0,9.999e-05,2]
[342583376,1731982238054,-504.29137705,9.999e-05,2]
[342583377,1731982238063,-257.2808941,9.999e-05,2]
[342583378,1731982238073,-500.0,9.999e-05,2]
[342583379,1731982238082,-504.88956055,9.999e-05,2]
[342583380,1731982238092,-500.0,9.999e-05,2]
[342583381,1731982238101,-500.0,9.999e-05,2]
[342583382,1731982238110,-500.0,9.999e-05,2]
[342583383,1731982238119,-513.00465006,9.999e-05,2]
[342583384,1731982238128,-500.0,9.999e-05,2]
[342583385,1731982238138,-500.0,9.999e-05,2]
[342583386,1731982238147,-500.0,9.999e-05,2]
[342583387,1731982238158,-500.0,9.999e-05,2]
[342583388,1731982238167,-505.25627143,9.999e-05,2]
[342583389,1731982238177,-511.54759559,9.999e-05,2]
[342583390,1731982238187,-504.46520502,9.999e-05,2]
[342583391,1731982238196,-500.0,9.999e-05,2]
[342583392,1731982238205,-500.0,9.999e-05,2]
[342583394,1731982238215,-500.0,9.999e-05,2]
[342583395,1731982238224,-485.7042064,9.999e-05,2]
[342583396,1731982238233,-508.97569542,9.999e-05,2]
[342583397,1731982238242,-500.0,9.999e-05,2]
[342583399,1731982238252,-514.48531944,9.999e-05,2]
[342583400,1731982238262,-500.0,9.999e-05,2]
[342583401,1731982238271,-500.0,9.999e-05,2]
[342583402,1731982238281,-502.02441101,9.999e-05,2]
[342583403,1731982238292,-508.19849851,9.999e-05,2]
[342583404,1731982238302,-500.0,9.999e-05,2]
[342583405,1731982238311,-500.0,9.999e-05,2]
[342583406,1731982238321,-500.0,9.999e-05,2]
[342583407,1731982238330,-218.72711523,9.999e-05,2]
[342583408,1731982238340,-500.0,9.999e-05,2]
[342583409,1731982238349,-500.0,9.999e-05,2]
[342583410,1731982238359,-500.0,9.999e-05,2]
[342583411,1731982238370,-373.48151928,9.999e-05,2]